[Event "Live Chess"]
[Site "Chess.com"]
[Date "2023.05.21"]
[Round "-"]
[White "LL220284LL"]
[Black "ShanthamGrarks"]
[Result "1-0"]
[WhiteElo "2391"]
[BlackElo "1975"]
[TimeControl "300"]
[EndTime "16:17:05 PDT"]
[Termination "LL220284LL won on time"]

1. Nf3 {[%clk 0:04:57.6]} 1... d6 {[%clk 0:04:57.1]} 2. b3 {[%clk 0:04:56.1]}
2... e5 {[%clk 0:04:55.4]} 3. d4 {[%clk 0:04:53.8]} 3... e4 {[%clk 0:04:53.1]}
4. Nfd2 {[%clk 0:04:52.6]} 4... d5 {[%clk 0:04:51.9]} 5. e3 {[%clk 0:04:51.8]}
5... f5 {[%clk 0:04:49.6]} 6. c4 {[%clk 0:04:51.3]} 6... c6 {[%clk 0:04:46.7]}
7. Ba3 {[%clk 0:04:49.9]} 7... Bxa3 {[%clk 0:04:44.6]} 8. Nxa3 {[%clk
0:04:49.8]} 8... Nf6 {[%clk 0:04:43]} 9. Nc2 {[%clk 0:04:47.6]} 9... O-O {[%clk
0:04:41.4]} 10. Be2 {[%clk 0:04:46.6]} 10... Be6 {[%clk 0:04:35.2]} 11. O-O
{[%clk 0:04:44.6]} 11... Nbd7 {[%clk 0:04:32.3]} 12. f3 {[%clk 0:04:42.7]} 12...
Qc7 {[%clk 0:04:25.1]} 13. f4 {[%clk 0:04:37.8]} 13... Ng4 {[%clk 0:04:11.6]}
14. h3 {[%clk 0:04:29.5]} 14... Ngf6 {[%clk 0:04:08.5]} 15. g3 {[%clk
0:04:28.3]} 15... a5 {[%clk 0:04:03.1]} 16. Kh2 {[%clk 0:04:26.9]} 16... g6
{[%clk 0:03:57.3]} 17. Rg1 {[%clk 0:04:25.5]} 17... Kh8 {[%clk 0:03:54.2]} 18.
Ne1 {[%clk 0:04:22.7]} 18... Rg8 {[%clk 0:03:52.8]} 19. Ng2 {[%clk 0:04:21]}
19... g5 {[%clk 0:03:51.6]} 20. fxg5 {[%clk 0:04:20]} 20... Rxg5 {[%clk
0:03:48.6]} 21. Nf4 {[%clk 0:04:19.6]} 21... Qd6 {[%clk 0:03:42.3]} 22. Rb1
{[%clk 0:04:11.7]} 22... Rag8 {[%clk 0:03:31.9]} 23. c5 {[%clk 0:04:10.4]} 23...
Qe7 {[%clk 0:03:29]} 24. Nf1 {[%clk 0:04:09.4]} 24... Bf7 {[%clk 0:03:22.3]} 25.
b4 {[%clk 0:04:07.4]} 25... axb4 {[%clk 0:03:06.3]} 26. Qa4 {[%clk 0:04:05.9]}
26... Bh5 {[%clk 0:02:56.6]} 27. Bxh5 {[%clk 0:03:49.6]} 27... Nxh5 {[%clk
0:02:54.2]} 28. Qxb4 {[%clk 0:03:45.4]} 28... Nxf4 {[%clk 0:02:41.8]} 29. exf4
{[%clk 0:03:45.3]} 29... R5g7 {[%clk 0:02:38.1]} 30. Ne3 {[%clk 0:03:44.5]}
30... Qd8 {[%clk 0:02:21.2]} 31. Rb2 {[%clk 0:03:34.5]} 31... Nf6 {[%clk
0:02:14.8]} 32. Nxf5 {[%clk 0:03:32]} 32... e3 {[%clk 0:02:13.1]} 33. Nxg7
{[%clk 0:03:28.7]} 33... Rxg7 {[%clk 0:02:11.1]} 34. Re2 {[%clk 0:03:27.1]}
34... Qe7 {[%clk 0:02:06.4]} 35. Qb3 {[%clk 0:03:22.4]} 35... Ne4 {[%clk
0:02:00.2]} 36. Rxe3 {[%clk 0:03:21.1]} 36... Qf6 {[%clk 0:01:50.6]} 37. Qd3
{[%clk 0:03:18]} 37... h5 {[%clk 0:01:40.3]} 38. Rxe4 {[%clk 0:03:14.5]} 38...
dxe4 {[%clk 0:01:39.5]} 39. Qxe4 {[%clk 0:03:14.4]} 39... h4 {[%clk 0:01:38]}
40. Qe8+ {[%clk 0:03:12.1]} 40... Kh7 {[%clk 0:01:30.7]} 41. Qh5+ {[%clk
0:03:09.7]} 41... Kg8 {[%clk 0:01:30.3]} 42. Re1 {[%clk 0:03:04.2]} 42... hxg3+
{[%clk 0:01:25.1]} 43. Kg2 {[%clk 0:03:02.9]} 43... Rg6 {[%clk 0:00:50.3]} 44.
f5 {[%clk 0:02:52.9]} 44... Rh6 {[%clk 0:00:31.4]} 45. Re8+ {[%clk 0:02:49]}
45... Kh7 {[%clk 0:00:26.2]} 46. Qg4 {[%clk 0:02:46.3]} 46... Qf7 {[%clk
0:00:21.6]} 47. Qe2 {[%clk 0:02:40.3]} 47... Qd5+ {[%clk 0:00:15.6]} 48. Kg1
{[%clk 0:02:36]} 48... Qxd4+ {[%clk 0:00:14.3]} 49. Kg2 {[%clk 0:02:30.3]} 49...
Qd5+ {[%clk 0:00:12.6]} 50. Kxg3 {[%clk 0:02:29.2]} 50... Qxf5 {[%clk
0:00:08.3]} 51. Qe7+ {[%clk 0:02:27]} 51... Kg6 {[%clk 0:00:07.7]} 52. Rg8+
{[%clk 0:02:25.4]} 52... Kh5 {[%clk 0:00:06.9]} 53. Qe2+ {[%clk 0:02:24.2]} 1-0

[Event "Live Chess"]
[Site "Chess.com"]
[Date "2023.05.21"]
[Round "-"]
[White "yeetpizza74"]
[Black "KGreenGator"]
[Result "0-1"]
[WhiteElo "458"]
[BlackElo "1762"]
[TimeControl "300"]
[EndTime "16:17:07 PDT"]
[Termination "KGreenGator won by checkmate"]

1. e4 {[%clk 0:04:56.7]} 1... c5 {[%clk 0:04:58.7]} 2. Nf3 {[%clk 0:04:52.9]}
2... Nc6 {[%clk 0:04:58]} 3. d4 {[%clk 0:04:46.9]} 3... cxd4 {[%clk 0:04:56.6]}
4. Nxd4 {[%clk 0:04:45.4]} 4... e5 {[%clk 0:04:55.6]} 5. Nxc6 {[%clk 0:04:43.4]}
5... bxc6 {[%clk 0:04:54.2]} 6. Bd3 {[%clk 0:04:37.3]} 6... Nf6 {[%clk
0:04:52.9]} 7. O-O {[%clk 0:04:33.2]} 7... Bb7 {[%clk 0:04:51.2]} 8. f3 {[%clk
0:04:28.3]} 8... Bc5+ {[%clk 0:04:47.2]} 9. Kh1 {[%clk 0:04:22.5]} 9... O-O
{[%clk 0:04:45.9]} 10. Bg5 {[%clk 0:04:19.9]} 10... Be7 {[%clk 0:04:43.4]} 11.
Bxf6 {[%clk 0:04:12]} 11... Bxf6 {[%clk 0:04:40.1]} 12. f4 {[%clk 0:04:07]}
12... d5 {[%clk 0:04:37.4]} 13. fxe5 {[%clk 0:04:02.3]} 13... Bxe5 {[%clk
0:04:35.8]} 14. exd5 {[%clk 0:04:00.1]} 14... Bxb2 {[%clk 0:04:33.7]} 15. dxc6
{[%clk 0:03:56.2]} 15... Bxc6 {[%clk 0:04:28.2]} 16. Qh5 {[%clk 0:03:41.4]}
16... g6 {[%clk 0:04:23.1]} 17. Qh3 {[%clk 0:03:32.3]} 17... Bxa1 {[%clk
0:04:15.9]} 18. Re1 {[%clk 0:03:15.5]} 18... Bg7 {[%clk 0:04:12.9]} 19. Nc3
{[%clk 0:03:07.8]} 19... Re8 {[%clk 0:04:09.6]} 20. Rxe8+ {[%clk 0:03:04.8]}
20... Qxe8 {[%clk 0:04:08.8]} 21. Qg3 {[%clk 0:02:50.4]} 21... Bxc3 {[%clk
0:04:06.2]} 22. Bf1 {[%clk 0:02:34]} 22... Qe1 {[%clk 0:03:57.7]} 23. Qxe1
{[%clk 0:02:12.3]} 23... Bxe1 {[%clk 0:03:55.7]} 24. Kg1 {[%clk 0:02:07.2]}
24... Rd8 {[%clk 0:03:52.4]} 25. Be2 {[%clk 0:01:59.1]} 25... Ba5 {[%clk
0:03:49.2]} 26. h3 {[%clk 0:01:51.4]} 26... Rd2 {[%clk 0:03:45.9]} 27. Kf2
{[%clk 0:01:49]} 27... Bb6+ {[%clk 0:03:42.9]} 28. Ke1 {[%clk 0:01:46]} 28...
Rxc2 {[%clk 0:03:41.2]} 29. Bf3 {[%clk 0:01:41.2]} 29... Bxf3 {[%clk 0:03:39]}
30. gxf3 {[%clk 0:01:40.2]} 30... Rxa2 {[%clk 0:03:38.6]} 31. f4 {[%clk
0:01:38]} 31... Rf2 {[%clk 0:03:36.8]} 32. Kd1 {[%clk 0:01:35.8]} 32... Kf8
{[%clk 0:03:35]} 33. h4 {[%clk 0:01:33.9]} 33... Ke7 {[%clk 0:03:34.3]} 34. f5
{[%clk 0:01:27.6]} 34... Kd6 {[%clk 0:03:32.9]} 35. fxg6 {[%clk 0:01:20.7]}
35... fxg6 {[%clk 0:03:31.7]} 36. h5 {[%clk 0:01:19]} 36... gxh5 {[%clk
0:03:30.2]} 37. Ke1 {[%clk 0:01:17.6]} 37... Kd5 {[%clk 0:03:29.4]} 38. Kd1
{[%clk 0:01:16.9]} 38... Kc4 {[%clk 0:03:28.3]} 39. Kc1 {[%clk 0:01:16.6]} 39...
Kc3 {[%clk 0:03:25.3]} 40. Kb1 {[%clk 0:01:12.4]} 40... Rc2 {[%clk 0:03:22]} 41.
Ka1 {[%clk 0:01:10.9]} 41... Kb3 {[%clk 0:03:21.3]} 42. Kb1 {[%clk 0:01:08.8]}
42... Rc4 {[%clk 0:03:20.6]} 43. Ka1 {[%clk 0:01:03.3]} 43... Rc1# {[%clk
0:03:20.2]} 0-1

[Event "Live Chess"]
[Site "Chess.com"]
[Date "2023.05.21"]
[Round "-"]
[White "HD_IN4k"]
[Black "LiamBellwood"]
[Result "0-1"]
[WhiteElo "404"]
[BlackElo "2060"]
[TimeControl "300"]
[EndTime "16:17:09 PDT"]
[Termination "LiamBellwood won by resignation"]

1. d4 {[%clk 0:04:53.3]} 1... e6 {[%clk 0:04:59.9]} 2. c4 {[%clk 0:04:52.2]}
2... f5 {[%clk 0:04:59.5]} 3. f3 {[%clk 0:04:50.1]} 3... Nf6 {[%clk 0:04:59.1]}
4. e4 {[%clk 0:04:48.9]} 4... fxe4 {[%clk 0:04:58.3]} 5. fxe4 {[%clk 0:04:47.9]}
5... Nxe4 {[%clk 0:04:52.5]} 6. Bd3 {[%clk 0:04:47.5]} 6... Bb4+ {[%clk
0:04:51]} 7. Bd2 {[%clk 0:04:41.7]} 7... Bxd2+ {[%clk 0:04:46.1]} 8. Nxd2 {[%clk
0:04:40]} 8... Nf6 {[%clk 0:04:45.6]} 9. Ngf3 {[%clk 0:02:30.9]} 9... O-O {[%clk
0:04:32.5]} 10. c5 {[%clk 0:02:19.4]} 10... b6 {[%clk 0:04:26.8]} 11. g4 {[%clk
0:02:07.2]} 11... Ba6 {[%clk 0:04:19.7]} 12. Bxa6 {[%clk 0:02:03.9]} 12... Nxa6
{[%clk 0:04:19.6]} 13. g5 {[%clk 0:02:01.8]} 13... Ng4 {[%clk 0:04:15.5]} 14.
Ne5 {[%clk 0:01:59.1]} 14... Nxe5 {[%clk 0:04:03.5]} 15. dxe5 {[%clk 0:01:57.2]}
15... Qxg5 {[%clk 0:04:02.9]} 16. Rf1 {[%clk 0:01:48.4]} 16... Nxc5 {[%clk
0:03:54.9]} 17. Rxf8+ {[%clk 0:01:33.6]} 17... Rxf8 {[%clk 0:03:54.8]} 18. Qe2
{[%clk 0:01:10.5]} 18... Qg1+ {[%clk 0:03:53.7]} 19. Qf1 {[%clk 0:01:07.6]}
19... Rxf1+ {[%clk 0:03:51.8]} 20. Nxf1 {[%clk 0:01:07.3]} 20... Ne4 {[%clk
0:03:50.9]} 21. O-O-O {[%clk 0:01:04.7]} 21... Qg5+ {[%clk 0:03:46.2]} 22. Nd2
{[%clk 0:01:00.3]} 22... Nxd2 {[%clk 0:03:44.8]} 23. Rxd2 {[%clk 0:00:59.1]}
23... Qxe5 {[%clk 0:03:44.7]} 24. b4 {[%clk 0:00:55.7]} 24... Qa1+ {[%clk
0:03:43.2]} 25. Kc2 {[%clk 0:00:52.3]} 25... Qxa2+ {[%clk 0:03:43.1]} 26. Kd3
{[%clk 0:00:49.7]} 26... Qxd2+ {[%clk 0:03:42.3]} 27. Kxd2 {[%clk 0:00:48.3]}
27... a5 {[%clk 0:03:42.2]} 28. bxa5 {[%clk 0:00:46.1]} 28... bxa5 {[%clk
0:03:42.1]} 29. Kc3 {[%clk 0:00:43.3]} 29... e5 {[%clk 0:03:41.7]} 30. h4 {[%clk
0:00:40]} 30... a4 {[%clk 0:03:40.3]} 31. Kb4 {[%clk 0:00:37]} 31... e4 {[%clk
0:03:39.5]} 32. Kxa4 {[%clk 0:00:35.7]} 32... e3 {[%clk 0:03:36.4]} 33. Kb3
{[%clk 0:00:35.6]} 33... e2 {[%clk 0:03:35.8]} 34. Kc2 {[%clk 0:00:33]} 34...
e1=Q {[%clk 0:03:35.1]} 35. Kd3 {[%clk 0:00:31.4]} 35... Qxh4 {[%clk 0:03:33.9]}
36. Ke3 {[%clk 0:00:30.1]} 0-1

[Event "Live Chess"]
[Site "Chess.com"]
[Date "2023.05.21"]
[Round "-"]
[White "DRS44"]
[Black "HoarseyHorsey"]
[Result "0-1"]
[WhiteElo "1351"]
[BlackElo "1433"]
[TimeControl "300"]
[EndTime "16:17:15 PDT"]
[Termination "HoarseyHorsey won by checkmate"]

1. e4 {[%clk 0:04:50]} 1... c5 {[%clk 0:04:58.6]} 2. c3 {[%clk 0:04:44.9]} 2...
e6 {[%clk 0:04:57.4]} 3. d4 {[%clk 0:04:41]} 3... d5 {[%clk 0:04:56.6]} 4. e5
{[%clk 0:04:37.9]} 4... Nc6 {[%clk 0:04:50.5]} 5. Nf3 {[%clk 0:04:29]} 5... Bd7
{[%clk 0:04:48.7]} 6. Bd3 {[%clk 0:04:23.1]} 6... cxd4 {[%clk 0:04:44]} 7. cxd4
{[%clk 0:04:19.3]} 7... Qb6 {[%clk 0:04:42.6]} 8. O-O {[%clk 0:04:13.6]} 8...
Nxd4 {[%clk 0:04:38.6]} 9. Nxd4 {[%clk 0:04:07.1]} 9... Qxd4 {[%clk 0:04:37.4]}
10. Nc3 {[%clk 0:04:03.8]} 10... a6 {[%clk 0:04:35.8]} 11. Qe2 {[%clk
0:03:52.2]} 11... Ne7 {[%clk 0:04:31.5]} 12. Kh1 {[%clk 0:03:45.6]} 12... Nc6
{[%clk 0:04:26.4]} 13. f4 {[%clk 0:03:37.9]} 13... Nb4 {[%clk 0:04:13.3]} 14.
Rd1 {[%clk 0:03:32.2]} 14... Bc5 {[%clk 0:04:09]} 15. Qg4 {[%clk 0:02:52.3]}
15... Nxd3 {[%clk 0:03:56.3]} 16. Rxd3 {[%clk 0:02:33.3]} 16... Qg1# {[%clk
0:03:54.3]} 0-1

[Event "Live Chess"]
[Site "Chess.com"]
[Date "2023.05.21"]
[Round "-"]
[White "domrobson"]
[Black "Singapourfeuj"]
[Result "0-1"]
[WhiteElo "1770"]
[BlackElo "2216"]
[TimeControl "300"]
[EndTime "16:17:16 PDT"]
[Termination "Singapourfeuj won by resignation"]

1. d4 {[%clk 0:04:58.7]} 1... Nf6 {[%clk 0:04:58.9]} 2. c4 {[%clk 0:04:58]} 2...
g6 {[%clk 0:04:58.2]} 3. Nc3 {[%clk 0:04:55.5]} 3... Bg7 {[%clk 0:04:57.5]} 4.
e4 {[%clk 0:04:54.8]} 4... d6 {[%clk 0:04:56.7]} 5. Be2 {[%clk 0:04:54.3]} 5...
O-O {[%clk 0:04:55.8]} 6. Bg5 {[%clk 0:04:51.8]} 6... c5 {[%clk 0:04:54.6]} 7.
d5 {[%clk 0:04:50.4]} 7... h6 {[%clk 0:04:53.4]} 8. Be3 {[%clk 0:04:49.4]} 8...
b5 {[%clk 0:04:51.8]} 9. cxb5 {[%clk 0:04:45.4]} 9... a6 {[%clk 0:04:50.5]} 10.
Qd2 {[%clk 0:04:44.3]} 10... axb5 {[%clk 0:04:49.2]} 11. Bxb5 {[%clk 0:04:40.7]}
11... Ba6 {[%clk 0:04:47.7]} 12. Bxa6 {[%clk 0:04:39.4]} 12... Nxa6 {[%clk
0:04:46.5]} 13. Bxh6 {[%clk 0:04:38]} 13... e6 {[%clk 0:04:38.9]} 14. Bxg7
{[%clk 0:04:36.7]} 14... Kxg7 {[%clk 0:04:38.2]} 15. Nf3 {[%clk 0:04:34.4]}
15... exd5 {[%clk 0:04:37.1]} 16. exd5 {[%clk 0:04:33.2]} 16... Re8+ {[%clk
0:04:36.1]} 17. Ne2 {[%clk 0:04:30.6]} 17... Nb4 {[%clk 0:04:30.7]} 18. O-O
{[%clk 0:04:22.8]} 18... Nbxd5 {[%clk 0:04:28.7]} 19. Nc3 {[%clk 0:04:17.3]}
19... Nb4 {[%clk 0:04:24.6]} 20. a3 {[%clk 0:04:15.7]} 20... Nc6 {[%clk
0:04:23.6]} 21. Rfd1 {[%clk 0:04:13.3]} 21... Ne5 {[%clk 0:04:13]} 22. Nxe5
{[%clk 0:04:10.3]} 22... dxe5 {[%clk 0:04:10.7]} 23. Qe3 {[%clk 0:04:04.5]}
23... Qe7 {[%clk 0:04:06.5]} 24. Nd5 {[%clk 0:04:01.6]} 24... Qb7 {[%clk
0:04:00.7]} 25. Nxf6 {[%clk 0:03:58]} 25... Kxf6 {[%clk 0:03:59.9]} 26. Qxc5
{[%clk 0:03:51.4]} 26... Qxb2 {[%clk 0:03:55.9]} 27. Qb4 {[%clk 0:03:38.9]}
27... Qxb4 {[%clk 0:03:49.2]} 28. axb4 {[%clk 0:03:37.9]} 28... Rxa1 {[%clk
0:03:48]} 29. Rxa1 {[%clk 0:03:36.5]} 29... Rb8 {[%clk 0:03:47]} 30. Rb1 {[%clk
0:03:35.5]} 30... Rb5 {[%clk 0:03:45.6]} 31. Kf1 {[%clk 0:03:35.1]} 31... e4
{[%clk 0:03:44.9]} 32. Ke2 {[%clk 0:03:34.5]} 32... Ke5 {[%clk 0:03:44.2]} 33.
Ke3 {[%clk 0:03:34.1]} 33... f5 {[%clk 0:03:43.1]} 34. g3 {[%clk 0:03:32.3]}
34... g5 {[%clk 0:03:41.3]} 35. h3 {[%clk 0:03:28.1]} 35... f4+ {[%clk
0:03:40.4]} 36. gxf4+ {[%clk 0:03:27.3]} 36... gxf4+ {[%clk 0:03:39.7]} 37. Ke2
{[%clk 0:03:26.6]} 37... Kd4 {[%clk 0:03:38.6]} 38. Rb3 {[%clk 0:03:17.2]} 38...
Kc4 {[%clk 0:03:36.9]} 39. Rb1 {[%clk 0:03:16.1]} 39... Kc3 {[%clk 0:03:35.9]}
40. h4 {[%clk 0:03:11.4]} 40... Kc2 {[%clk 0:03:34.6]} 41. Rh1 {[%clk
0:03:07.1]} 41... Rxb4 {[%clk 0:03:33.5]} 42. h5 {[%clk 0:03:06.5]} 42... Rb3
{[%clk 0:03:32.4]} 43. h6 {[%clk 0:03:05.1]} 43... f3+ {[%clk 0:03:31.5]} 0-1

[Event "Live Chess"]
[Site "Chess.com"]
[Date "2023.05.21"]
[Round "-"]
[White "Tushinskiy"]
[Black "whitedjohn"]
[Result "1-0"]
[WhiteElo "2170"]
[BlackElo "1650"]
[TimeControl "300"]
[EndTime "16:17:22 PDT"]
[Termination "Tushinskiy won by checkmate"]

1. d4 {[%clk 0:04:58.3]} 1... Nf6 {[%clk 0:04:57.9]} 2. c3 {[%clk 0:04:58.2]}
2... d5 {[%clk 0:04:55.3]} 3. Nf3 {[%clk 0:04:58.1]} 3... Bg4 {[%clk 0:04:52]}
4. Bf4 {[%clk 0:04:57.3]} 4... e6 {[%clk 0:04:50.5]} 5. Nbd2 {[%clk 0:04:55.6]}
5... Bd6 {[%clk 0:04:48.8]} 6. Bg3 {[%clk 0:04:54.7]} 6... Bxg3 {[%clk
0:04:45.9]} 7. hxg3 {[%clk 0:04:54.6]} 7... Nc6 {[%clk 0:04:41.7]} 8. Qc2 {[%clk
0:04:52.9]} 8... Qe7 {[%clk 0:04:32.5]} 9. e4 {[%clk 0:04:49.7]} 9... dxe4
{[%clk 0:04:25.5]} 10. Nxe4 {[%clk 0:04:49.6]} 10... Nxe4 {[%clk 0:04:23.5]} 11.
Qxe4 {[%clk 0:04:49.5]} 11... Bf5 {[%clk 0:04:21.8]} 12. Qe3 {[%clk 0:04:48.3]}
12... O-O-O {[%clk 0:04:13.9]} 13. Bb5 {[%clk 0:04:47.1]} 13... Nb8 {[%clk
0:04:06.8]} 14. O-O {[%clk 0:04:42.3]} 14... c6 {[%clk 0:04:05.2]} 15. Ba4
{[%clk 0:04:39.4]} 15... Nd7 {[%clk 0:04:03.6]} 16. b4 {[%clk 0:04:37.5]} 16...
Nb6 {[%clk 0:03:54]} 17. Bb3 {[%clk 0:04:36.2]} 17... Nd5 {[%clk 0:03:51]} 18.
Bxd5 {[%clk 0:04:34.4]} 18... cxd5 {[%clk 0:03:46.6]} 19. a4 {[%clk 0:04:32.9]}
19... Bg4 {[%clk 0:03:20.2]} 20. Ne5 {[%clk 0:04:30.6]} 20... Bf5 {[%clk
0:03:13.1]} 21. Nf3 {[%clk 0:04:29.3]} 21... f6 {[%clk 0:03:10.9]} 22. Rfe1
{[%clk 0:04:27.3]} 22... Rde8 {[%clk 0:03:08.2]} 23. b5 {[%clk 0:04:22.4]} 23...
Qd6 {[%clk 0:03:01.5]} 24. a5 {[%clk 0:04:19.4]} 24... Bg4 {[%clk 0:02:54]} 25.
Nh2 {[%clk 0:04:17.8]} 25... Bf5 {[%clk 0:02:50.1]} 26. b6 {[%clk 0:04:15.7]}
26... a6 {[%clk 0:02:47.1]} 27. Nf3 {[%clk 0:04:09.1]} 27... Kb8 {[%clk
0:02:34.2]} 28. Nd2 {[%clk 0:04:03.9]} 28... e5 {[%clk 0:02:24]} 29. c4 {[%clk
0:04:01.1]} 29... dxc4 {[%clk 0:02:16.6]} 30. Nxc4 {[%clk 0:03:58.3]} 30... Qxd4
{[%clk 0:02:14]} 31. Qxd4 {[%clk 0:03:53]} 31... exd4 {[%clk 0:02:11.9]} 32. Nd6
{[%clk 0:03:52.3]} 32... Rxe1+ {[%clk 0:02:06.8]} 33. Rxe1 {[%clk 0:03:52.2]}
33... Bg6 {[%clk 0:01:51.3]} 34. f4 {[%clk 0:03:51.2]} 34... Rd8 {[%clk
0:01:36.4]} 35. f5 {[%clk 0:03:50.2]} 35... Rxd6 {[%clk 0:01:31.6]} 36. fxg6
{[%clk 0:03:49.1]} 36... Rd8 {[%clk 0:01:29.4]} 37. gxh7 {[%clk 0:03:47.4]}
37... Rh8 {[%clk 0:01:27.8]} 38. Re7 {[%clk 0:03:44.8]} 38... Rxh7 {[%clk
0:01:25.3]} 39. Re8# {[%clk 0:03:43.6]} 1-0

[Event "Live Chess"]
[Site "Chess.com"]
[Date "2023.05.21"]
[Round "-"]
[White "raminguy"]
[Black "CheckThis4"]
[Result "0-1"]
[WhiteElo "1959"]
[BlackElo "2540"]
[TimeControl "300"]
[EndTime "16:17:23 PDT"]
[Termination "CheckThis4 won by resignation"]

1. d4 {[%clk 0:04:59.5]} 1... Nf6 {[%clk 0:04:58.4]} 2. Nc3 {[%clk 0:04:58.6]}
2... d5 {[%clk 0:04:56]} 3. Bf4 {[%clk 0:04:58]} 3... c5 {[%clk 0:04:44]} 4. e4
{[%clk 0:04:56.6]} 4... e6 {[%clk 0:04:38.4]} 5. Nb5 {[%clk 0:04:54.6]} 5... Na6
{[%clk 0:04:35.8]} 6. dxc5 {[%clk 0:04:38.1]} 6... Nxe4 {[%clk 0:04:29]} 7. b4
{[%clk 0:04:32.8]} 7... Qf6 {[%clk 0:04:18.3]} 8. Bg3 {[%clk 0:03:36.6]} 8...
Bd7 {[%clk 0:03:40.7]} 9. a3 {[%clk 0:03:29.4]} 9... h5 {[%clk 0:03:25.4]} 10.
Nf3 {[%clk 0:03:20.7]} 10... h4 {[%clk 0:03:21.8]} 11. Be5 {[%clk 0:03:19.2]}
11... Qg6 {[%clk 0:03:18.6]} 12. h3 {[%clk 0:02:48.3]} 12... Be7 {[%clk
0:03:15.5]} 13. Bd3 {[%clk 0:01:46.8]} 13... Qxg2 {[%clk 0:03:09.7]} 14. Rf1
{[%clk 0:01:18.8]} 14... f6 {[%clk 0:02:58.5]} 15. Bh2 {[%clk 0:01:06.7]} 15...
Qxh3 {[%clk 0:02:51.6]} 16. c4 {[%clk 0:01:00.2]} 16... O-O {[%clk 0:02:24.8]}
17. cxd5 {[%clk 0:00:56.2]} 17... exd5 {[%clk 0:02:24.7]} 0-1

[Event "Live Chess"]
[Site "Chess.com"]
[Date "2023.05.21"]
[Round "-"]
[White "BJAW87"]
[Black "grillage"]
[Result "0-1"]
[WhiteElo "1436"]
[BlackElo "1848"]
[TimeControl "300"]
[EndTime "16:17:29 PDT"]
[Termination "grillage won by resignation"]

1. e4 {[%clk 0:04:59.2]} 1... d5 {[%clk 0:04:58.3]} 2. exd5 {[%clk 0:04:57.9]}
2... Qxd5 {[%clk 0:04:56.9]} 3. Nc3 {[%clk 0:04:57.6]} 3... Qd8 {[%clk
0:04:54.8]} 4. Nf3 {[%clk 0:04:57.1]} 4... Nf6 {[%clk 0:04:52.6]} 5. Bc4 {[%clk
0:04:56.5]} 5... a6 {[%clk 0:04:48.7]} 6. a4 {[%clk 0:04:53.5]} 6... Nc6 {[%clk
0:04:46.6]} 7. d3 {[%clk 0:04:52.4]} 7... Bg4 {[%clk 0:04:44.7]} 8. Nd5 {[%clk
0:04:47.6]} 8... Nxd5 {[%clk 0:04:41.2]} 9. Bg5 {[%clk 0:04:42.9]} 9... Nf6
{[%clk 0:04:33]} 10. Bxf6 {[%clk 0:04:37]} 10... Bxf3 {[%clk 0:04:18.9]} 11.
Qxf3 {[%clk 0:04:33.4]} 11... exf6 {[%clk 0:04:14.7]} 12. O-O {[%clk 0:04:32.9]}
12... Be7 {[%clk 0:04:11.7]} 13. Rfe1 {[%clk 0:04:31.7]} 13... O-O {[%clk
0:04:10.5]} 14. Re2 {[%clk 0:04:24.5]} 14... Ne5 {[%clk 0:04:09.6]} 15. Qe4
{[%clk 0:04:22.7]} 15... Nxc4 {[%clk 0:04:05.3]} 16. Qxc4 {[%clk 0:04:22.6]}
16... Bd6 {[%clk 0:04:01.3]} 17. Rae1 {[%clk 0:04:19.9]} 17... Qd7 {[%clk
0:03:59.7]} 18. Qe4 {[%clk 0:04:12.5]} 18... g6 {[%clk 0:03:34.1]} 19. Qxb7
{[%clk 0:04:10.8]} 19... Rae8 {[%clk 0:03:26]} 20. Rxe8 {[%clk 0:04:04.2]} 20...
Rxe8 {[%clk 0:03:24.7]} 21. Rxe8+ {[%clk 0:04:02.3]} 21... Qxe8 {[%clk
0:03:23.9]} 22. g3 {[%clk 0:03:59.6]} 22... Qxa4 {[%clk 0:03:16.8]} 23. Qc8+
{[%clk 0:03:56.9]} 23... Kg7 {[%clk 0:03:15.4]} 24. Qg4 {[%clk 0:03:51.9]} 24...
Qxc2 {[%clk 0:03:11.4]} 0-1

[Event "Live Chess"]
[Site "Chess.com"]
[Date "2023.05.21"]
[Round "-"]
[White "IgorSchukin"]
[Black "LutherSullivan"]
[Result "0-1"]
[WhiteElo "1749"]
[BlackElo "2073"]
[TimeControl "300"]
[EndTime "16:17:59 PDT"]
[Termination "LutherSullivan won on time"]

1. e4 {[%clk 0:04:56.5]} 1... c5 {[%clk 0:04:58.3]} 2. a3 {[%clk 0:04:48.4]}
2... g6 {[%clk 0:04:55]} 3. Nc3 {[%clk 0:04:46.8]} 3... Bg7 {[%clk 0:04:54.1]}
4. Nf3 {[%clk 0:04:45.1]} 4... Nc6 {[%clk 0:04:51.7]} 5. Bc4 {[%clk 0:04:43.4]}
5... e6 {[%clk 0:04:49.5]} 6. d3 {[%clk 0:04:41.7]} 6... Nge7 {[%clk 0:04:46.6]}
7. O-O {[%clk 0:04:39.8]} 7... O-O {[%clk 0:04:44.7]} 8. Bg5 {[%clk 0:04:38.4]}
8... h6 {[%clk 0:04:42.9]} 9. Bh4 {[%clk 0:04:37.3]} 9... Nd4 {[%clk 0:04:31.2]}
10. h3 {[%clk 0:04:27.2]} 10... Rb8 {[%clk 0:04:22.1]} 11. Nxd4 {[%clk
0:04:20.5]} 11... cxd4 {[%clk 0:04:19.9]} 12. Nb5 {[%clk 0:04:12.7]} 12... a6
{[%clk 0:03:24.7]} 13. Nd6 {[%clk 0:03:42.8]} 13... Be5 {[%clk 0:03:23.2]} 14.
Nxc8 {[%clk 0:03:39.2]} 14... Rxc8 {[%clk 0:03:19.9]} 15. f4 {[%clk 0:03:35.4]}
15... Bh8 {[%clk 0:03:09.6]} 16. f5 {[%clk 0:03:33]} 16... d5 {[%clk 0:02:48.1]}
17. f6 {[%clk 0:03:29.1]} 17... Nc6 {[%clk 0:02:41.8]} 18. exd5 {[%clk 0:03:24]}
18... exd5 {[%clk 0:02:40]} 19. Bb3 {[%clk 0:03:21.8]} 19... Na5 {[%clk
0:02:24.9]} 20. Ba2 {[%clk 0:03:19.2]} 20... Rc6 {[%clk 0:02:22.6]} 21. Qf3
{[%clk 0:03:07]} 21... g5 {[%clk 0:02:08.7]} 22. Be1 {[%clk 0:02:39.9]} 22...
Rxf6 {[%clk 0:02:06.2]} 23. Qxd5 {[%clk 0:02:33.7]} 23... Rxf1+ {[%clk
0:01:56.4]} 24. Kxf1 {[%clk 0:02:32]} 24... Nc6 {[%clk 0:01:39.6]} 25. Bb4
{[%clk 0:02:13.5]} 25... Qxd5 {[%clk 0:01:33]} 26. Bxd5 {[%clk 0:02:09.9]} 26...
Rd8 {[%clk 0:01:32.5]} 27. Bb3 {[%clk 0:01:43.7]} 27... Be5 {[%clk 0:01:12.7]}
28. g4 {[%clk 0:01:34.2]} 28... Kg7 {[%clk 0:01:08.6]} 29. Kg2 {[%clk
0:01:32.3]} 29... Bf4 {[%clk 0:01:05.3]} 30. Bc5 {[%clk 0:01:18.5]} 30... Re8
{[%clk 0:00:55.2]} 31. Rf1 {[%clk 0:01:15]} 31... Re3 {[%clk 0:00:49]} 32. Bd5
{[%clk 0:00:55.6]} 32... Rg3+ {[%clk 0:00:40]} 33. Kf2 {[%clk 0:00:53.2]} 33...
Rxh3 {[%clk 0:00:38]} 34. Bxc6 {[%clk 0:00:49.9]} 34... bxc6 {[%clk 0:00:37.3]}
35. Bxd4+ {[%clk 0:00:48]} 35... f6 {[%clk 0:00:34.7]} 36. Ke2 {[%clk 0:00:21]}
36... h5 {[%clk 0:00:29.3]} 37. gxh5 {[%clk 0:00:19]} 37... Rxh5 {[%clk
0:00:28.9]} 38. Kf3 {[%clk 0:00:16.8]} 38... Rh3+ {[%clk 0:00:26.3]} 39. Ke4
{[%clk 0:00:15.7]} 39... Kg6 {[%clk 0:00:24.4]} 40. c4 {[%clk 0:00:11.3]} 40...
Rh8 {[%clk 0:00:21.7]} 41. b4 {[%clk 0:00:09.8]} 41... f5+ {[%clk 0:00:19.2]}
42. Kf3 {[%clk 0:00:08.4]} 42... Bc7 {[%clk 0:00:17.8]} 43. Re1 {[%clk
0:00:06.2]} 43... g4+ {[%clk 0:00:17.1]} 44. Kg2 {[%clk 0:00:04.8]} 44... Rh2+
{[%clk 0:00:15.6]} 45. Kg1 {[%clk 0:00:04.1]} 45... Rd2 {[%clk 0:00:15.1]} 46.
Re6+ {[%clk 0:00:03]} 46... Kg5 {[%clk 0:00:14.2]} 47. Bf6+ {[%clk 0:00:01.6]}
47... Kf4 {[%clk 0:00:12.7]} 48. Re7 {[%clk 0:00:00.7]} 48... Kg3 {[%clk
0:00:10.2]} 0-1